Body,Body Name,Date,TransNo,Amount � (Excl VAT),Supplier name,Description,Expense Area,Expense Type,Expense Code,
http://opendatacommunities.org/id/london-borough-council/sutton,London Borough of Sutton,10/11/2020,1309204,128.33 , AO RETAIL LIMITED,FRIDGE,Peoples Services Directorate,Provisions - General,F150,
http://opendatacommunities.org/id/london-borough-council/sutton,London Borough of Sutton,27/10/2020,1309204,"4,000.00 ", CS MORRISONS GIFT CARD,PURCHASE OF MORRISONS' VOUCHERS FOR FSMS IN HALF TERM PROJECT,Peoples Services Directorate,Other Services,F340,
http://opendatacommunities.org/id/london-borough-council/sutton,London Borough of Sutton,27/10/2020,1309204,"3,000.00 ", CS MORRISONS GIFT CARD,PURCHASE OF MORRISONS' VOUCHERS FOR FSMS IN HALF TERM PROJECT,Peoples Services Directorate,Other Services,F340,
http://opendatacommunities.org/id/london-borough-council/sutton,London Borough of Sutton,27/10/2020,1309204,"3,000.00 ", CS MORRISONS GIFT CARD,PURCHASE OF MORRISONS' VOUCHERS FOR FSMS IN HALF TERM PROJECT,Peoples Services Directorate,Other Services,F340,
http://opendatacommunities.org/id/london-borough-council/sutton,London Borough of Sutton,20/11/2020,1309204,52.41 , AMZNMKTPLACE,TOYS & EQUIPMENT,Health and Wellbeing Directorate,Education Equipment,F009,
http://opendatacommunities.org/id/london-borough-council/sutton,London Borough of Sutton,03/11/2020,1309204,40.91 , AMZNMKTPLACE AMAZON.CO,TOYS & EQUIPMENT,Health and Wellbeing Directorate,Education Equipment,F009,
http://opendatacommunities.org/id/london-borough-council/sutton,London Borough of Sutton,23/11/2020,1309204,8.32 , TWINKL LIMITED,TWINKL SUBSCRIPTION,Health and Wellbeing Directorate,Education Equipment,F009,
http://opendatacommunities.org/id/london-borough-council/sutton,London Borough of Sutton,16/11/2020,1309204,30.32 , ASDA SUPERSTORE,GROCERIES,Health and Wellbeing Directorate,Provisions - General,F150,
http://opendatacommunities.org/id/london-borough-council/sutton,London Borough of Sutton,10/11/2020,1309204,25.30 , ASDA SUPERSTORE,GROCERIES,Health and Wellbeing Directorate,Provisions - General,F150,
http://opendatacommunities.org/id/london-borough-council/sutton,London Borough of Sutton,03/11/2020,1309204,41.38 , ASDA SUPERSTORE,GROCERIES,Health and Wellbeing Directorate,Provisions - General,F150,
http://opendatacommunities.org/id/london-borough-council/sutton,London Borough of Sutton,26/10/2020,1309204,11.15 , ASDA SUPERSTORE,GROCERIES,Health and Wellbeing Directorate,Provisions - General,F150,
http://opendatacommunities.org/id/london-borough-council/sutton,London Borough of Sutton,23/11/2020,1309204,43.12 , ASDA SUPERSTORE,GROCERIES,Health and Wellbeing Directorate,Provisions - General,F150,
http://opendatacommunities.org/id/london-borough-council/sutton,London Borough of Sutton,28/10/2020,1309204,14.81 , ASDA SUPERSTORE,GROCERIES,Health and Wellbeing Directorate,Refreshments,F155,
http://opendatacommunities.org/id/london-borough-council/sutton,London Borough of Sutton,26/10/2020,1309204,66.00 , WWW.BOOKING.GLL.ORG,PERSONAL REQUEST TICKET FOR CONTACT,Peoples Services Directorate,Personal Requisites,F106,
http://opendatacommunities.org/id/london-borough-council/sutton,London Borough of Sutton,25/11/2020,1309204,18.08 , ASDA STORES,HOUSEHOLD ITEMS,Peoples Services Directorate,Other Services,F340,
http://opendatacommunities.org/id/london-borough-council/sutton,London Borough of Sutton,24/11/2020,1309204,"2,148.33 ", OFSTED INTERNET,OFSTED REGISTRATION,Peoples Services Directorate,Other Services,F340,
http://opendatacommunities.org/id/london-borough-council/sutton,London Borough of Sutton,23/11/2020,1309204,45.97 , ASDA GROCERIES ONLINE,WEEKLY SHOP,Peoples Services Directorate,Other Services,F340,
http://opendatacommunities.org/id/london-borough-council/sutton,London Borough of Sutton,04/11/2020,1309204,0.82 , AMAZON PRIME M74JW1LJ4,HAS BEEN REFUNDED IN FOLLOWING MONTH. CHARGED IN ERROR. DOES NOT REFLECT IN AMAZON ACCOUNT,Peoples Services Directorate,Other Services,F340,
http://opendatacommunities.org/id/london-borough-council/sutton,London Borough of Sutton,02/11/2020,1309204,12.82 , AMZNMKTPLACE AMAZON.CO,INDOOR FIREWORKS (2 RECEIPTS),Peoples Services Directorate,Other Services,F340,
http://opendatacommunities.org/id/london-borough-council/sutton,London Borough of Sutton,30/10/2020,1309204,6.39 , BUDGENS,WEEKLY TAKEAWAY,Peoples Services Directorate,Other Services,F340,
http://opendatacommunities.org/id/london-borough-council/sutton,London Borough of Sutton,29/10/2020,1309204,54.66 , LIDL GB LONDON,WEEKLY SHOP,Peoples Services Directorate,Other Services,F340,
http://opendatacommunities.org/id/london-borough-council/sutton,London Borough of Sutton,28/10/2020,1309204,178.29 , DUNELM,HOUSEHOLD ITEM,Peoples Services Directorate,Other Services,F340,
http://opendatacommunities.org/id/london-borough-council/sutton,London Borough of Sutton,05/11/2020,1309204,16.47 , UBER    TRIP,EU TRAVEL,Peoples Services Directorate,Other Services,F340,
http://opendatacommunities.org/id/london-borough-council/sutton,London Borough of Sutton,27/10/2020,1309204,7.47 , ANNA PHARMACY,FEMININE CARE,Peoples Services Directorate,Other Services,F340,
http://opendatacommunities.org/id/london-borough-council/sutton,London Borough of Sutton,27/10/2020,1309204,13.33 , BP WRYTHE CONNECT,IPHONE CHARGER,Peoples Services Directorate,Other Services,F340,
http://opendatacommunities.org/id/london-borough-council/sutton,London Borough of Sutton,27/10/2020,1309204,2.08 , BP WRYTHE CONNECT,FEMINE CARE,Peoples Services Directorate,Other Services,F340,
http://opendatacommunities.org/id/london-borough-council/sutton,London Borough of Sutton,26/10/2020,1309204,24.99 , NORTON  NP266944514,IPHONE SECURITY,Peoples Services Directorate,Other Services,F340,
http://opendatacommunities.org/id/london-borough-council/sutton,London Borough of Sutton,26/10/2020,1309204,13.72 , WH SMITH,SCHOOL ITEMS,Peoples Services Directorate,Other Services,F340,
http://opendatacommunities.org/id/london-borough-council/sutton,London Borough of Sutton,26/10/2020,1309204,36.73 , NEW LOOK 1985,SCHOOL CLOTHES,Peoples Services Directorate,Other Services,F340,
http://opendatacommunities.org/id/london-borough-council/sutton,London Borough of Sutton,23/11/2020,1309204,(0.02), ASDA GROCERIES ONLINE,POST ORDER PRICE ADJUSTMENT,Peoples Services Directorate,Other Services,F340,
http://opendatacommunities.org/id/london-borough-council/sutton,London Borough of Sutton,20/11/2020,1309204,5.32 , BUDGENS,WEEKLY SHOP,Peoples Services Directorate,Other Services,F340,
http://opendatacommunities.org/id/london-borough-council/sutton,London Borough of Sutton,19/11/2020,1309204,23.87 , AMZNMKTPLACE,OFFICE SUPPLIES (2 RECEIPTS),Peoples Services Directorate,Other Services,F340,
http://opendatacommunities.org/id/london-borough-council/sutton,London Borough of Sutton,16/11/2020,1309204,28.02 , B&Q DIRECT,PAINT FOR EU TO DECORATE HER ROOM,Peoples Services Directorate,Other Services,F340,
http://opendatacommunities.org/id/london-borough-council/sutton,London Borough of Sutton,16/11/2020,1309204,56.77 , ASDA GROCERIES ONLINE,WEEKLY SHOP,Peoples Services Directorate,Other Services,F340,
http://opendatacommunities.org/id/london-borough-council/sutton,London Borough of Sutton,16/11/2020,1309204,(0.25), ASDA GROCERIES ONLINE,POST ORDER PRICE ADJUSTMENT,Peoples Services Directorate,Other Services,F340,
http://opendatacommunities.org/id/london-borough-council/sutton,London Borough of Sutton,13/11/2020,1309204,5.32 , BUDGENS,WEEKLY TAKEAWAY,Peoples Services Directorate,Other Services,F340,
http://opendatacommunities.org/id/london-borough-council/sutton,London Borough of Sutton,12/11/2020,1309204,266.66 , ARGOS LTD,TV,Peoples Services Directorate,Other Services,F340,
http://opendatacommunities.org/id/london-borough-council/sutton,London Borough of Sutton,12/11/2020,1309204,131.25 , TVLICENSING.CO.UK,TV LICENCE,Peoples Services Directorate,Other Services,F340,
http://opendatacommunities.org/id/london-borough-council/sutton,London Borough of Sutton,01/09/2020,1309204,19.72 , AMZNMKTPLACE,FRAUDULENT TRANSACTION REFUND SEPT 2020 STATEMENT CE CARD RV JNL 1305719,Peoples Services Directorate,Other Services,F340,
http://opendatacommunities.org/id/london-borough-council/sutton,London Borough of Sutton,10/11/2020,1309204,22.46 , ARGOS LTD,HOUSEHOLD ITEMS,Peoples Services Directorate,Other Services,F340,
http://opendatacommunities.org/id/london-borough-council/sutton,London Borough of Sutton,10/11/2020,1309204,62.50 , DUNELM,CURTAINS AND CURTAIN POLES,Peoples Services Directorate,Other Services,F340,
http://opendatacommunities.org/id/london-borough-council/sutton,London Borough of Sutton,10/11/2020,1309204,6.67 , FUDGE CAKES CIRCLE BAK,TREAT FOR EU,Peoples Services Directorate,Other Services,F340,
http://opendatacommunities.org/id/london-borough-council/sutton,London Borough of Sutton,06/11/2020,1309204,5.32 , BUDGENS,WEEKLY SHOP,Peoples Services Directorate,Other Services,F340,
http://opendatacommunities.org/id/london-borough-council/sutton,London Borough of Sutton,06/11/2020,1309204,62.77 , TESCO STORE 3235,WEEKLY SHOP,Peoples Services Directorate,Other Services,F340,
http://opendatacommunities.org/id/london-borough-council/sutton,London Borough of Sutton,06/11/2020,1309204,41.81 , AMZNMKTPLACE AMAZON.CO,HOUSEHOLD ITEMS (2 RECEIPTS),Peoples Services Directorate,Other Services,F340,
http://opendatacommunities.org/id/london-borough-council/sutton,London Borough of Sutton,05/11/2020,1309204,15.86 , UBER TRIP HELP.UBER.CO,EU TRAVEL,Peoples Services Directorate,Other Services,F340,
http://opendatacommunities.org/id/london-borough-council/sutton,London Borough of Sutton,04/11/2020,1309204,179.14 , ARGOS LTD,VACUUM CLEANER,Peoples Services Directorate,Other Services,F340,
http://opendatacommunities.org/id/london-borough-council/sutton,London Borough of Sutton,03/11/2020,1309204,743.77 , AMZNMKTPLACE,AMAZON JT 041120 743.77,Peoples Services Directorate,Purchase of IT Equipment,F380,
http://opendatacommunities.org/id/london-borough-council/sutton,London Borough of Sutton,27/10/2020,1309204,3.17 , MAILCHIMP,JT CLASSROOM MGR $USD EXCHANGE FEE,Peoples Services Directorate,Purchase of IT Equipment,F380,
http://opendatacommunities.org/id/london-borough-council/sutton,London Borough of Sutton,26/10/2020,1309204,115.21 , MTMOMK,JT CLASSROOM MGR $150USD,Peoples Services Directorate,Purchase of IT Equipment,F380,
http://opendatacommunities.org/id/london-borough-council/sutton,London Borough of Sutton,26/11/2020,1309204,23.23 , MOJO HELPDESK,MOJO HELPDESK IT DEPT,Peoples Services Directorate,IT Licences,F385,
http://opendatacommunities.org/id/london-borough-council/sutton,London Borough of Sutton,26/11/2020,1309204,844.89 , MOJO HELPDESK,IT DEPT MOJO HELPDESK,Peoples Services Directorate,IT Licences,F385,
http://opendatacommunities.org/id/london-borough-council/sutton,London Borough of Sutton,16/11/2020,1309204,500.00 , FACEBK ETHK6W67A2,FACEBOOK SPRING PROMO INC ISLINGTON,Peoples Services Directorate,Advertising/Publicity (non Staff),F240,
http://opendatacommunities.org/id/london-borough-council/sutton,London Borough of Sutton,09/11/2020,1309204,406.80 , WWW.INSTANTPRINT.C,INSTANTPRINT SPRING COURSE GUIDE 9/11/20 406.80,Peoples Services Directorate,Advertising/Publicity (non Staff),F240,
http://opendatacommunities.org/id/london-borough-council/sutton,London Borough of Sutton,30/10/2020,1309204,108.74 , MAILCHIMP,MAILCHIMP 301020 108.74,Peoples Services Directorate,Advertising/Publicity (non Staff),F240,
http://opendatacommunities.org/id/london-borough-council/sutton,London Borough of Sutton,19/11/2020,1309204,159.17 , WWW.INSTANTPRINT.C,PULL  UP COVID-19 PROTECTION SCREENS X 6,Peoples Services Directorate,Health and Safety Equipment,F005,
http://opendatacommunities.org/id/london-borough-council/sutton,London Borough of Sutton,12/11/2020,1309204,10.95 , PAYPAL  ROBIN KAY EBAY,LM APPRENTICESHIPS TEXT BOOK,Peoples Services Directorate,Books,F006,
http://opendatacommunities.org/id/london-borough-council/sutton,London Borough of Sutton,10/11/2020,1309204,156.60 , WWW.INSTANTPRINT.C,INSTANTPRINT SPRING ART BOOKLET BM 156.60,Peoples Services Directorate,Advertising/Publicity (non Staff),F240,
http://opendatacommunities.org/id/london-borough-council/sutton,London Borough of Sutton,25/11/2020,1309204,7.16 , SAINSBURYS SACAT 2006,COOKERY INGREDIENTS,Peoples Services Directorate,Education Equipment,F009,
http://opendatacommunities.org/id/london-borough-council/sutton,London Borough of Sutton,20/11/2020,1309204,9.63 , WM MORRISONS STORE,COOKERY INGREDIENTS,Peoples Services Directorate,Education Equipment,F009,
http://opendatacommunities.org/id/london-borough-council/sutton,London Borough of Sutton,18/11/2020,1309204,13.90 , SAINSBURYS SACAT 2006,COOKERY INGREDIENTS,Peoples Services Directorate,Education Equipment,F009,
http://opendatacommunities.org/id/london-borough-council/sutton,London Borough of Sutton,13/11/2020,1309204,9.10 , WM MORRISONS STORE,COOKERY INGREDIENTS,Peoples Services Directorate,Education Equipment,F009,
http://opendatacommunities.org/id/london-borough-council/sutton,London Borough of Sutton,06/11/2020,1309204,20.60 , WM MORRISONS STORE,COOKERY INGREDIENTS,Peoples Services Directorate,Education Equipment,F009,
http://opendatacommunities.org/id/london-borough-council/sutton,London Borough of Sutton,04/11/2020,1309204,6.35 , ASDA STORES,COOKERY INGREDIENTS,Peoples Services Directorate,Education Equipment,F009,
http://opendatacommunities.org/id/london-borough-council/sutton,London Borough of Sutton,11/11/2020,1309204,8.07 , SAINSBURYS SACAT 2006,COOKERY INGREDIENTS,Peoples Services Directorate,Education Equipment,F009,
http://opendatacommunities.org/id/london-borough-council/sutton,London Borough of Sutton,10/11/2020,1309204,24.95 , AMZNMKTPLACE,"SPLIT - ZONEE 2 PIECES MIST SPRAY BOTTLES DURABLE EMPTY TRIGGER SPRAYER BOTTLE FOR KITCHEN,GARDENING,CLEANING,400ML (38.53%)",Peoples Services Directorate,Administrative Equipment,F001,
http://opendatacommunities.org/id/london-borough-council/sutton,London Borough of Sutton,10/11/2020,1309204,3.75 , AMZNMKTPLACE,SPLIT - SCOLA ARTMIX 600ML BOTTLES READY MIX CRAFT POSTER PAINT CRIMSON (100%),Peoples Services Directorate,Administrative Equipment,F001,
http://opendatacommunities.org/id/london-borough-council/sutton,London Borough of Sutton,09/11/2020,1309204,5.12 , AMZNMKTPLACE,F001 0340 0132 SPLIT - JCF KIDS PAINT BRUSHES WITH PLASTIC HANDLE AND HOG BRISTLES 4 PCS FLAT TIP PAINTING BRUSHES FOR CHILDREN MULTI COLOR PAINT BRUSHES-7.4 INCH (88.09%),Peoples Services Directorate,Administrative Equipment,F001,
http://opendatacommunities.org/id/london-borough-council/sutton,London Borough of Sutton,09/11/2020,1309204,0.69 , AMZNMKTPLACE,BALANCING ENTRY AMOUNT (11.91%),Peoples Services Directorate,Administrative Equipment,F001,
http://opendatacommunities.org/id/london-borough-council/sutton,London Borough of Sutton,10/11/2020,1309204,10.42 , AMZNMKTPLACE,"SPLIT - UNISEX FACE_SHIELD_PROTECT VISOR COVER WINDPROOF TRANSPARENT, OIL FUME, SPITTING ANTI-FOG LENS FOR DAILY ACTIVITIES AND WORKING (10) (100%)",Peoples Services Directorate,Personal Requisites,F106,
http://opendatacommunities.org/id/london-borough-council/sutton,London Borough of Sutton,10/11/2020,1309204,49.98 , AMZNMKTPLACE,"SPLIT - HALIDODO INFRARED THERMOMETER, NON-CONTACT INFRARED FOREHEAD THERMOMETER, DIGITAL THREE COLOR BACKLIT DISPLAY INSTANT READING TEMPERATURE OF BABY, KID AND ADULT (91.76%)",Peoples Services Directorate,Personal Requisites,F106,
http://opendatacommunities.org/id/london-borough-council/sutton,London Borough of Sutton,10/11/2020,1309204,4.49 , AMZNMKTPLACE,BALANCING ENTRY AMOUNT (8.24%),Peoples Services Directorate,Personal Requisites,F106,
http://opendatacommunities.org/id/london-borough-council/sutton,London Borough of Sutton,10/11/2020,1309204,4.99 , AMZNMKTPLACE,SPLIT - NORJEWS BABY HOME SAFETY SOCKET COVERS CHILD PROOF PLUG SOCKET PROTECTORS/GUARDS (20 PACKS) (7.7%),Peoples Services Directorate,Personal Requisites,F106,
http://opendatacommunities.org/id/london-borough-council/sutton,London Borough of Sutton,05/11/2020,1309204,72.40 , TESCO STORE 3066,TESCO ORDER,Peoples Services Directorate,Personal Requisites,F106,
http://opendatacommunities.org/id/london-borough-council/sutton,London Borough of Sutton,04/11/2020,1309204,116.66 , ARGOS LTD,ARGOS ORDER,Peoples Services Directorate,Personal Requisites,F106,
http://opendatacommunities.org/id/london-borough-council/sutton,London Borough of Sutton,04/11/2020,1309204,370.83 , IKEA LTD SHOP ONLINE,IKEA ORDER,Peoples Services Directorate,Personal Requisites,F106,
http://opendatacommunities.org/id/london-borough-council/sutton,London Borough of Sutton,10/11/2020,1309204,8.32 , AMZNMKTPLACE,SPLIT - BAKER ROSS FLOWER PAINT PLASTIC PALETTES WITH 7 WELLS FOR PAINTING AND CHILDREN'S ARTS AND CRAFTS PROJECTS (PACK OF 3) (12.86%),Peoples Services Directorate,Personal Requisites,F106,
http://opendatacommunities.org/id/london-borough-council/sutton,London Borough of Sutton,10/11/2020,1309204,24.12 , AMZNMKTPLACE,"SPLIT - TBC THE BEST CRAFTS TEMPERA PAINT STICKS,12 CLASSIC COLOURS, WASHABLE,NON- TOXIC,CRAYON PAINT STICKS FOR KIDS AND STUDENT (37.12%)",Peoples Services Directorate,Personal Requisites,F106,
http://opendatacommunities.org/id/london-borough-council/sutton,London Borough of Sutton,10/11/2020,1309204,2.97 , AMZNMKTPLACE,BALANCING ENTRY AMOUNT (3.79%),Peoples Services Directorate,Personal Requisites,F106,
http://opendatacommunities.org/id/london-borough-council/sutton,London Borough of Sutton,10/11/2020,1309204,259.96 , ARGOS LTD,ARGOS ORDER,Peoples Services Directorate,Personal Requisites,F106,
http://opendatacommunities.org/id/london-borough-council/sutton,London Borough of Sutton,10/11/2020,1309204,8.32 , AMZNMKTPLACE,"SPLIT - 8 PIECES KIDS WATERPROOF APRONS| ADJUSTABLE, DURABLE, EASY TO CLEAN, WASHABLE| MESSY PLAY, ARTS & CRAFTS, PAINTING, DRAWING, BAKING, COOKING| IDEAL CHRISTMAS & BIRTHDAY GIFT FOR CHILDREN & TODDLERS. (418.33%)",Peoples Services Directorate,Personal Requisites,F106,
http://opendatacommunities.org/id/london-borough-council/sutton,London Borough of Sutton,10/11/2020,1309204,26.64 , AMZNMKTPLACE,"SPLIT - SCOLA ARTMIX 6 X 600 ML PAINT, COLORED (ASSORTED) (1336.67%)",Peoples Services Directorate,Personal Requisites,F106,
http://opendatacommunities.org/id/london-borough-council/sutton,London Borough of Sutton,10/11/2020,1309204,(39.72), AMZNMKTPLACE,BALANCING ENTRY AMOUNT (-4965%),Peoples Services Directorate,Personal Requisites,F106,
http://opendatacommunities.org/id/london-borough-council/sutton,London Borough of Sutton,06/11/2020,1309204,(154.16), WF  WAYFAIR 3417075054,REFUND ITEMS,Peoples Services Directorate,Personal Requisites,F106,
http://opendatacommunities.org/id/london-borough-council/sutton,London Borough of Sutton,30/10/2020,1309204,169.99 , WF  WAYFAIR 3417957844,PERSONAL ITEMS REQUIRED FOR CLIENT,Peoples Services Directorate,Personal Requisites,F106,
http://opendatacommunities.org/id/london-borough-council/sutton,London Borough of Sutton,30/10/2020,1309204,169.99 , WF  WAYFAIR 3417957844,PERSONAL ITEMS REQUIRED FOR CLIENT,Peoples Services Directorate,Personal Requisites,F106,
http://opendatacommunities.org/id/london-borough-council/sutton,London Borough of Sutton,29/10/2020,1309204,756.60 , WF  WAYFAIR 3438120458,PERSONAL ITEMS REQUIRED FOR CLIENT,Peoples Services Directorate,Personal Requisites,F106,
http://opendatacommunities.org/id/london-borough-council/sutton,London Borough of Sutton,06/11/2020,1309204,37.50 , INTERFLORA BRITISH UNI,A GIFT TO SAY THANK YOU,Peoples Services Directorate,Personal Requisites,F106,
http://opendatacommunities.org/id/london-borough-council/sutton,London Borough of Sutton,02/11/2020,1309204,80.83 , ARGOS LTD,ARGOS HOME HAYWARD 2 DOOR SMALL TV UNIT - GREY GLOSS LEAVING CARE TEAM,Peoples Services Directorate,Personal Requisites,F106,
http://opendatacommunities.org/id/london-borough-council/sutton,London Borough of Sutton,19/11/2020,1309204,220.00 , AMAZON.CO.UK M72XQ4W34,SPLIT - AMAZON.CO.UK GIFT CARD IN A SANTA AND RUDOLPH GREETING CARD (100%),Peoples Services Directorate,Personal Requisites,F106,
http://opendatacommunities.org/id/london-borough-council/sutton,London Borough of Sutton,10/11/2020,1309204,(1.59), AMZNMKTPLACE,BALANCING ENTRY AMOUNT (-11.76%),Peoples Services Directorate,Personal Requisites,F106,
http://opendatacommunities.org/id/london-borough-council/sutton,London Borough of Sutton,21/11/2020,1309204,18.92 , LIDL GB LONDON,DR,Peoples Services Directorate,Personal Requisites,F106,
http://opendatacommunities.org/id/london-borough-council/sutton,London Borough of Sutton,19/11/2020,1309204,19.58 , SAINSBURYS LOC (4308),MC MOVING,Peoples Services Directorate,Personal Requisites,F106,
http://opendatacommunities.org/id/london-borough-council/sutton,London Borough of Sutton,19/11/2020,1309204,55.00 , WALLINGTON COMPUTERS,JD,Peoples Services Directorate,Personal Requisites,F106,
http://opendatacommunities.org/id/london-borough-council/sutton,London Borough of Sutton,02/11/2020,1309204,3.82 , KFC - SUTTON,MA ACTIVITY,Peoples Services Directorate,Personal Requisites,F106,
http://opendatacommunities.org/id/london-borough-council/sutton,London Borough of Sutton,02/11/2020,1309204,36.99 , ARGOS LTD,DR THERMOMETER,Peoples Services Directorate,Personal Requisites,F106,
http://opendatacommunities.org/id/london-borough-council/sutton,London Borough of Sutton,27/10/2020,1309204,5.86 , MCDONALDS1049,MC ACTIVITY,Peoples Services Directorate,Personal Requisites,F106,
http://opendatacommunities.org/id/london-borough-council/sutton,London Borough of Sutton,06/11/2020,1309204,4.90 , COX PIPPIN CAFE,RA ACTIVITY,Peoples Services Directorate,Personal Requisites,F106,
http://opendatacommunities.org/id/london-borough-council/sutton,London Borough of Sutton,04/11/2020,1309204,5.72 , MCDONALDS,MC ACTIVITY,Peoples Services Directorate,Personal Requisites,F106,
http://opendatacommunities.org/id/london-borough-council/sutton,London Borough of Sutton,03/11/2020,1309204,5.28 , PPOINT_ FIRST STOP SUR,JC GROCERIES,Peoples Services Directorate,Personal Requisites,F106,
http://opendatacommunities.org/id/london-borough-council/sutton,London Borough of Sutton,03/11/2020,1309204,8.35 , MCDONALDS,JC ACTIVITY,Peoples Services Directorate,Personal Requisites,F106,
http://opendatacommunities.org/id/london-borough-council/sutton,London Borough of Sutton,10/11/2020,1309204,8.32 , AMZNMKTPLACE,"SPLIT - 8 PIECES KIDS WATERPROOF APRONS| ADJUSTABLE, DURABLE, EASY TO CLEAN, WASHABLE| MESSY PLAY, ARTS & CRAFTS, PAINTING, DRAWING, BAKING, COOKING| IDEAL CHRISTMAS & BIRTHDAY GIFT FOR CHILDREN & TODDLERS. (24.77%)",Peoples Services Directorate,Personal Requisites,F106,
http://opendatacommunities.org/id/london-borough-council/sutton,London Borough of Sutton,25/11/2020,1309204,5.82 , AMZNMKTPLACE,YP XMAS,Peoples Services Directorate,Personal Requisites,F106,
http://opendatacommunities.org/id/london-borough-council/sutton,London Borough of Sutton,23/11/2020,1309204,5.45 , COX PIPPIN CAFE,RA ACTIVITY,Peoples Services Directorate,Personal Requisites,F106,
http://opendatacommunities.org/id/london-borough-council/sutton,London Borough of Sutton,21/11/2020,1309204,80.34 , DOBIES,ALLOTMENT QUAD,Peoples Services Directorate,Personal Requisites,F106,
http://opendatacommunities.org/id/london-borough-council/sutton,London Borough of Sutton,20/11/2020,1309204,6.25 , AMZNMKTPLACE,SPLIT - MOO FREE ADVENT CALENDAR WEIGHT 70G (100%),Peoples Services Directorate,Personal Requisites,F106,
http://opendatacommunities.org/id/london-borough-council/sutton,London Borough of Sutton,10/11/2020,1309204,26.64 , AMZNMKTPLACE,"SPLIT - SCOLA ARTMIX 6 X 600 ML PAINT, COLORED (ASSORTED) (79.15%)",Peoples Services Directorate,Personal Requisites,F106,
http://opendatacommunities.org/id/london-borough-council/sutton,London Borough of Sutton,29/10/2020,1309204,183.32 , DUREST BEDS,PERSONAL ITEMS REQUIRED FOR CLIENT,Peoples Services Directorate,Client Care/Assistance,H301,
http://opendatacommunities.org/id/london-borough-council/sutton,London Borough of Sutton,24/11/2020,1309204,29.99 , AMZNMKTPLACE,SPLIT - LIVERPOOL FC OFFICIAL FOOTBALL GIFT MENS SHOWER JACKET WINDBREAKER MEDIUM BLACK (100%),Peoples Services Directorate,Client Care/Assistance,H301,
http://opendatacommunities.org/id/london-borough-council/sutton,London Borough of Sutton,20/11/2020,1309204,47.49 , VIDAXL UK,VIDA XL,Peoples Services Directorate,Client Care/Assistance,H301,
http://opendatacommunities.org/id/london-borough-council/sutton,London Borough of Sutton,19/11/2020,1309204,37.50 , ARGOS LTD,MC SET UP,Peoples Services Directorate,Set Up Costs - Children Leaving Care,H336,
http://opendatacommunities.org/id/london-borough-council/sutton,London Borough of Sutton,19/11/2020,1309204,290.83 , ARGOS LTD,MC,Peoples Services Directorate,Set Up Costs - Children Leaving Care,H336,
http://opendatacommunities.org/id/london-borough-council/sutton,London Borough of Sutton,19/11/2020,1309204,72.00 , AMZNMKTPLACE,MC SET UP,Peoples Services Directorate,Set Up Costs - Children Leaving Care,H336,
http://opendatacommunities.org/id/london-borough-council/sutton,London Borough of Sutton,16/11/2020,1309204,16.65 , TOOLSTATION UK,JD SETTING UP,Peoples Services Directorate,Set Up Costs - Children Leaving Care,H336,
http://opendatacommunities.org/id/london-borough-council/sutton,London Borough of Sutton,02/11/2020,1309204,170.00 , CEX SUTTON,JD,Peoples Services Directorate,Set Up Costs - Children Leaving Care,H336,
http://opendatacommunities.org/id/london-borough-council/sutton,London Borough of Sutton,15/11/2020,1309204,20.82 , AMAZON.CO.UK M76GT7DM4,MC SETTING UP,Peoples Services Directorate,Set Up Costs - Children Leaving Care,H336,
http://opendatacommunities.org/id/london-borough-council/sutton,London Borough of Sutton,13/11/2020,1309204,375.22 , AMZNMKTPLACE,MC SET UP,Peoples Services Directorate,Set Up Costs - Children Leaving Care,H336,
http://opendatacommunities.org/id/london-borough-council/sutton,London Borough of Sutton,09/11/2020,1309204,342.68 , AMZNMKTPLACE AMAZON.CO,MC SET UP,Peoples Services Directorate,Set Up Costs - Children Leaving Care,H336,
http://opendatacommunities.org/id/london-borough-council/sutton,London Borough of Sutton,21/11/2020,1309204,95.83 , AMZNMKTPLACE AMAZON.CO,AO,Peoples Services Directorate,Set Up Costs - Children Leaving Care,H336,
http://opendatacommunities.org/id/london-borough-council/sutton,London Borough of Sutton,02/11/2020,1309204,171.62 , ARGOS LTD,ARGOS ORDER,Peoples Services Directorate,Set Up Costs - Children Leaving Care,H336,
http://opendatacommunities.org/id/london-borough-council/sutton,London Borough of Sutton,30/10/2020,1309204,(169.99), WF  WAYFAIR 3417957844,FURNITURE REQUIRED FOR CLIENT,Peoples Services Directorate,Personal Requisites,F106,
http://opendatacommunities.org/id/london-borough-council/sutton,London Borough of Sutton,29/10/2020,1309204,(169.99), WF  WAYFAIR 3417957844,REFUND - WAYFAIR,Peoples Services Directorate,Personal Requisites,F106,
http://opendatacommunities.org/id/london-borough-council/sutton,London Borough of Sutton,24/11/2020,1309204,219.12 , ARGOS LTD,ITEMS REQUESTED BY CLIENT,Peoples Services Directorate,Client Care/Assistance,H301,
http://opendatacommunities.org/id/london-borough-council/sutton,London Borough of Sutton,20/11/2020,1309204,16.67 , OYSTER BUS AUTOLOAD,AUTO TOP - UP,Peoples Services Directorate,Travelling and Subsistence Allowances,A530,
http://opendatacommunities.org/id/london-borough-council/sutton,London Borough of Sutton,30/10/2020,1309204,16.67 , OYSTER BUS AUTOLOAD,AUTO TOP - UP,Peoples Services Directorate,Travelling and Subsistence Allowances,A530,
http://opendatacommunities.org/id/london-borough-council/sutton,London Borough of Sutton,13/11/2020,1309204,16.67 , OYSTER AUTO TOPUP,AUTO TOP-UP,Peoples Services Directorate,Travelling and Subsistence Allowances,A530,
http://opendatacommunities.org/id/london-borough-council/sutton,London Borough of Sutton,29/10/2020,1309204,16.67 , OYSTER BUS AUTOLOAD,AUTO TOP-UP,Peoples Services Directorate,Travelling and Subsistence Allowances,A530,
http://opendatacommunities.org/id/london-borough-council/sutton,London Borough of Sutton,19/11/2020,1309204,16.67 , OYSTER BUS AUTOLOAD,AUTO TOP - UP,Peoples Services Directorate,Travelling and Subsistence Allowances,A530,
http://opendatacommunities.org/id/london-borough-council/sutton,London Borough of Sutton,25/11/2020,1309204,15.79 , AMAZON.CO.UK MY1287TD4,SPLIT - THE A-Z OF THERAPEUTIC PARENTING: STRATEGIES AND SOLUTIONS (THERAPEUTIC PARENTING BOOKS (84.08%),Peoples Services Directorate,Personal Requisites,F106,
http://opendatacommunities.org/id/london-borough-council/sutton,London Borough of Sutton,25/11/2020,1309204,2.99 , AMAZON.CO.UK MY1287TD4,BALANCING ENTRY AMOUNT (15.92%),Peoples Services Directorate,Personal Requisites,F106,
http://opendatacommunities.org/id/london-borough-council/sutton,London Borough of Sutton,18/11/2020,1309204,27.50 , LBS REGISTRARS,BIRTH CERTIFICATE NEEDED FOR LEGAL PROCEEDINGS,Peoples Services Directorate,Personal Requisites,F106,
http://opendatacommunities.org/id/london-borough-council/sutton,London Borough of Sutton,17/11/2020,1309204,9.99 , AMAZON.CO.UK M77EB0934,"SPLIT - THE MOOD CARDS: MAKE SENSE OF YOUR MOODS AND EMOTIONS FOR CLARITY, CONFIDENCE AND WELL-BEING (MOOD SERIES) (83.38%)",Peoples Services Directorate,Personal Requisites,F106,
http://opendatacommunities.org/id/london-borough-council/sutton,London Borough of Sutton,17/11/2020,1309204,2.49 , AMAZON.CO.UK M77EB0934,BALANCING ENTRY AMOUNT (16.62%),Peoples Services Directorate,Personal Requisites,F106,
http://opendatacommunities.org/id/london-borough-council/sutton,London Borough of Sutton,24/11/2020,1309204,59.95 , ZOOM.US 888-799-9666,SUBSCRIPTION NEEDED FOR A TEAM,Peoples Services Directorate,Subscriptions - General,F450,
http://opendatacommunities.org/id/london-borough-council/sutton,London Borough of Sutton,31/10/2020,1309204,16.67 , OYSTER BUS AUTOLOAD,AUTO TOP - UP,Peoples Services Directorate,Travelling and Subsistence Allowances,A530,
http://opendatacommunities.org/id/london-borough-council/sutton,London Borough of Sutton,14/11/2020,1309204,16.67 , OYSTER BUS AUTOLOAD,AUTO TOP-UP,Peoples Services Directorate,Travelling and Subsistence Allowances,A530,
http://opendatacommunities.org/id/london-borough-council/sutton,London Borough of Sutton,17/11/2020,1309204,65.00 , WWW.TAXICODE.COM,ITEMS TO BE MOVED TO A PLACEMENT,Peoples Services Directorate,Hired Peoples Transport (Children),E072,
http://opendatacommunities.org/id/london-borough-council/sutton,London Borough of Sutton,27/10/2020,1309204,33.00 , LBSUTTON,SOCIAL WORKER REQUEST FOR BIRTH CERTIFICATE,Peoples Services Directorate,Personal Requisites,F106,
http://opendatacommunities.org/id/london-borough-council/sutton,London Borough of Sutton,25/11/2020,1309204,27.50 , LBS REGISTRARS,BIRTH CERTIFICATE PURCHASE,Peoples Services Directorate,Personal Requisites,F106,
http://opendatacommunities.org/id/london-borough-council/sutton,London Borough of Sutton,09/10/2020,1309204,(15.42), GEN REGISTER OFFICE,BIRTH CERTIFICATE REQUESTED BY SOCIAL WORKER FOR LEGAL PROCEEDINGS,Peoples Services Directorate,Personal Requisites,F106,
http://opendatacommunities.org/id/london-borough-council/sutton,London Borough of Sutton,18/11/2020,1309204,30.00 , LAMBETH INTERNET PAYM,BIRTH CERTIFICATE NEEDED FOR LEGAL PROCEEDINGS,Peoples Services Directorate,Personal Requisites,F106,
http://opendatacommunities.org/id/london-borough-council/sutton,London Borough of Sutton,23/11/2020,1309204,27.50 , LBS REGISTRARS,BIRTH CERTIFICATE FOR LEGAL PROCEEDINGS,Peoples Services Directorate,Personal Requisites,F106,
http://opendatacommunities.org/id/london-borough-council/sutton,London Borough of Sutton,23/11/2020,1309204,27.50 , ESSEX COUNTY COUNCI EC,BIRTH CERTIFICATE FOR LEGAL PROCEEDINGS,Peoples Services Directorate,Personal Requisites,F106,
http://opendatacommunities.org/id/london-borough-council/sutton,London Borough of Sutton,13/11/2020,1309204,33.33 , LAMBETH INTERNET PAYM,BIRTH CERTIFICATE NEEDED FOR LEGAL PROCEEDINGS,Peoples Services Directorate,Personal Requisites,F106,
http://opendatacommunities.org/id/london-borough-council/sutton,London Borough of Sutton,19/11/2020,1309204,96.67 , OTH MINI CABS,TAXI NEEDED TO ATTEND CONTACT,Peoples Services Directorate,C.C.A Travel & Subsistance,H212,
http://opendatacommunities.org/id/london-borough-council/sutton,London Borough of Sutton,18/11/2020,1309204,41.67 , PAYPAL  LONDONTRANS,TAXI EXTRA PAYMENT FOR A LARGER VEHICLE / WAITING TIME,Peoples Services Directorate,C.C.A Travel & Subsistance,H212,
http://opendatacommunities.org/id/london-borough-council/sutton,London Borough of Sutton,18/11/2020,1309204,774.00 , ALPHA TAXIS,TAXI NEEDED TO ATTEND CONTACT,Peoples Services Directorate,C.C.A Travel & Subsistance,H212,
http://opendatacommunities.org/id/london-borough-council/sutton,London Borough of Sutton,12/11/2020,1309204,54.17 , THE CROWN MITRE HOTEL,HOTEL NEEDED FOR SOCIAL WORKER ATTENDING CONTACT,Peoples Services Directorate,Client Care/Assistance,H301,
http://opendatacommunities.org/id/london-borough-council/sutton,London Borough of Sutton,11/11/2020,1309204,16.40 , MINICABIT,TRAVEL TO CONTACT,Peoples Services Directorate,C.C.A Travel & Subsistance,H212,
http://opendatacommunities.org/id/london-borough-council/sutton,London Borough of Sutton,26/11/2020,1309204,71.14 , GOOGLE  ADS5058737870,FOSTERING SONS AND DAUGHTERS CAMPAIGN,Peoples Services Directorate,Fees - Other,F299,
http://opendatacommunities.org/id/london-borough-council/sutton,London Borough of Sutton,10/11/2020,1309204,1.27 , FACEBK 73MDQXEAL2,SPLIT - FOSTERING CAMPAIGN AD (0.64%),Peoples Services Directorate,Fees - Other,F299,
http://opendatacommunities.org/id/london-borough-council/sutton,London Borough of Sutton,30/10/2020,1309204,159.90 , ZOOM.US 888-799-9666,SUBSCRIPTION FOR A TEAM,Peoples Services Directorate,Subscriptions - General,F450,
http://opendatacommunities.org/id/london-borough-council/sutton,London Borough of Sutton,05/11/2020,1309204,20.83 , OYSTER ONLINE,NEW OYSTER PURCHASE,Peoples Services Directorate,Travelling and Subsistence Allowances,A530,
http://opendatacommunities.org/id/london-borough-council/sutton,London Borough of Sutton,05/11/2020,1309204,20.83 , OYSTER ONLINE,NEW OYSTER PURCHASE,Peoples Services Directorate,Travelling and Subsistence Allowances,A530,
http://opendatacommunities.org/id/london-borough-council/sutton,London Borough of Sutton,05/11/2020,1309204,20.83 , OYSTER ONLINE,NEW OYSTER PURCHASE,Peoples Services Directorate,Travelling and Subsistence Allowances,A530,
http://opendatacommunities.org/id/london-borough-council/sutton,London Borough of Sutton,26/10/2020,1309204,92.75 , WWW.RAJAPACK.CO.UK,STATIONERY ENVELOPES FOR SAFEGUARDING LETTERS,Peoples Services Directorate,Stationery,F220,
http://opendatacommunities.org/id/london-borough-council/sutton,London Borough of Sutton,15/11/2020,1309204,16.67 , OYSTER BUS AUTOLOAD,AUTO TOP - UP,Peoples Services Directorate,Travelling and Subsistence Allowances,A530,
http://opendatacommunities.org/id/london-borough-council/sutton,London Borough of Sutton,12/11/2020,1309204,16.67 , OYSTER BUS AUTOLOAD,AUTO TOP-UP,Peoples Services Directorate,Travelling and Subsistence Allowances,A530,
http://opendatacommunities.org/id/london-borough-council/sutton,London Borough of Sutton,28/10/2020,1309204,16.67 , OYSTER AUTO TOPUP,AUTO TOP UP,Peoples Services Directorate,Travelling and Subsistence Allowances,A530,
http://opendatacommunities.org/id/london-borough-council/sutton,London Borough of Sutton,01/11/2020,1309204,16.67 , OYSTER AUTO TOPUP,AUTO TOP-UP,Peoples Services Directorate,Travelling and Subsistence Allowances,A530,
http://opendatacommunities.org/id/london-borough-council/sutton,London Borough of Sutton,24/11/2020,1309204,16.64 , WATERSTONES,BOOK PRESENT FOR A CARE LEAVER,Peoples Services Directorate,Personal Requisites,F106,
http://opendatacommunities.org/id/london-borough-council/sutton,London Borough of Sutton,24/11/2020,1309204,102.84 , FINDEL EDUCATION,REQUESTED BY SOCIAL WORKER,Peoples Services Directorate,Personal Requisites,F106,
http://opendatacommunities.org/id/london-borough-council/sutton,London Borough of Sutton,14/11/2020,1309204,11.99 , ZOOM.GBP,ZOOM SUBSCRIPTION FOR CHILDREN IN CARE COUNCIL,Peoples Services Directorate,LAC - Education,F269,
http://opendatacommunities.org/id/london-borough-council/sutton,London Borough of Sutton,11/11/2020,1309204,(50.00), EB  HOW SAFE 2020,REFUND,Peoples Services Directorate,Training - Course Fees,A520,
http://opendatacommunities.org/id/london-borough-council/sutton,London Borough of Sutton,12/11/2020,1309204,20.83 , OYSTER ONLINE,NEW OYSTER CARD PURCHASE,Peoples Services Directorate,Travelling and Subsistence Allowances,A530,
http://opendatacommunities.org/id/london-borough-council/sutton,London Borough of Sutton,10/11/2020,1309204,50.00 , AMAZON.CO.UK M727T7P34,SPLIT - THANK YOU (WHIMSICAL) - AMAZON.CO.UK EGIFT VOUCHER (100%),Peoples Services Directorate,Personal Requisites,F106,
http://opendatacommunities.org/id/london-borough-council/sutton,London Borough of Sutton,14/11/2020,1309204,16.67 , OYSTER BUS AUTOLOAD,AUTO TOP - UP,Peoples Services Directorate,Travelling and Subsistence Allowances,A530,
http://opendatacommunities.org/id/london-borough-council/sutton,London Borough of Sutton,28/10/2020,1309204,16.67 , OYSTER BUS AUTOLOAD,AUTO TOP UP,Peoples Services Directorate,Travelling and Subsistence Allowances,A530,
http://opendatacommunities.org/id/london-borough-council/sutton,London Borough of Sutton,18/11/2020,1309204,16.67 , OYSTER BUS AUTOLOAD,AUTO TOP - UP,Peoples Services Directorate,Travelling and Subsistence Allowances,A530,
http://opendatacommunities.org/id/london-borough-council/sutton,London Borough of Sutton,23/11/2020,1309204,16.67 , AUTO TOP-UP ARREARS,OYSTER AUTO TOP - UP,Peoples Services Directorate,Travelling and Subsistence Allowances,A530,
http://opendatacommunities.org/id/london-borough-council/sutton,London Borough of Sutton,22/11/2020,1309204,16.67 , OYSTER BUS AUTOLOAD,AUTO TOP-UP,Peoples Services Directorate,Travelling and Subsistence Allowances,A530,
http://opendatacommunities.org/id/london-borough-council/sutton,London Borough of Sutton,26/10/2020,1309204,319.95 , ARGOS LTD,PERSONAL ITEMS REQUEST FROM ARGOS,Peoples Services Directorate,Personal Requisites,F106,
http://opendatacommunities.org/id/london-borough-council/sutton,London Borough of Sutton,25/11/2020,1309204,9.85 , AMAZON.CO.UK MY6OL8TB4,SPLIT - AN INSPECTOR CALLS (HEINEMANN PLAYS FOR 14-16+) (12.5%),Peoples Services Directorate,LAC - Education,F269,
http://opendatacommunities.org/id/london-borough-council/sutton,London Borough of Sutton,25/11/2020,1309204,5.50 , AMAZON.CO.UK MY6OL8TB4,SPLIT - GCSE ENGLISH LITERATURE AQA POETRY GUIDE: POWER & CONFLICT ANTHOLOGY - FOR THE GRADE 9-1 COURSE: IDEAL REVISION FOR MOCKS AND EXAMS IN 2021 AND 2022 (CGP GCSE ENGLISH 9-1 REVISION) (6.98%),Peoples Services Directorate,LAC - Education,F269,
http://opendatacommunities.org/id/london-borough-council/sutton,London Borough of Sutton,25/11/2020,1309204,15.50 , AMAZON.CO.UK MY6OL8TB4,SPLIT - AQA GCSE PHYSICS FOR COMBINED SCIENCE (TRILOGY) STUDENT BOOK (AQA GCSE SCIENCE 3RD EDITION) (19.67%),Peoples Services Directorate,LAC - Education,F269,
http://opendatacommunities.org/id/london-borough-council/sutton,London Borough of Sutton,25/11/2020,1309204,4.16 , AMAZON.CO.UK MY6OL8TB4,SPLIT - REVISE EDEXCEL GCSE (9-1) HISTORY: EARLY ELIZABETHAN ENGLAND REVISION CARDS: WITH FREE ONLINE REVISION GUIDE AND WORKBOOK (REVISE EDEXCEL GCSE HISTORY 16) (6.33%),Peoples Services Directorate,LAC - Education,F269,
http://opendatacommunities.org/id/london-borough-council/sutton,London Borough of Sutton,25/11/2020,1309204,24.22 , AMAZON.CO.UK MY6OL8TB4,SPLIT - WJEC/EDUQAS GCSE MEDIA STUDIES: STUDENT BOOK (30.73%),Peoples Services Directorate,LAC - Education,F269,
http://opendatacommunities.org/id/london-borough-council/sutton,London Borough of Sutton,25/11/2020,1309204,9.21 , AMAZON.CO.UK MY6OL8TB4,SPLIT - EDEXCEL GCSE 9-1 MATHS FOUNDATION ALL-IN-ONE COMPLETE REVISION AND PRACTICE: FOR THE 2020 AUTUMN & 2021 SUMMER EXAMS (COLLINS GCSE GRADE 9-1 REVISION) (12.27%),Peoples Services Directorate,LAC - Education,F269,
http://opendatacommunities.org/id/london-borough-council/sutton,London Borough of Sutton,25/11/2020,1309204,8.16 , AMAZON.CO.UK MY6OL8TB4,SPLIT - GRADE 9-1 GCSE COMBINED SCIENCE FOR AQA PHYSICS STUDENT BOOK WITH ONLINE EDITION: PERFECT REVISION FOR MOCKS AND EXAMS IN 2021 AND 2022 (CGP GCSE COMBINED SCIENCE 9-1 REVISION) (11.53%),Peoples Services Directorate,LAC - Education,F269,
http://opendatacommunities.org/id/london-borough-council/sutton,London Borough of Sutton,24/11/2020,1309204,4.95 , AMAZON.CO.UK MY6C80314,SPLIT - NEW FUNCTIONAL SKILLS ENGLISH ENTRY LEVEL 3 - 10 MINUTE TESTS (FOR 2020 & BEYOND) (CGP FUNCTIONAL SKILLS) (39.79%),Peoples Services Directorate,LAC - Education,F269,
http://opendatacommunities.org/id/london-borough-council/sutton,London Borough of Sutton,24/11/2020,1309204,7.49 , AMAZON.CO.UK MY6C80314,SPLIT - NEW FUNCTIONAL SKILLS ENGLISH ENTRY LEVEL 3 - STUDY & TEST PRACTICE (FOR 2019 & BEYOND) (CGP FUNCTIONAL SKILLS) (60.21%),Peoples Services Directorate,LAC - Education,F269,
http://opendatacommunities.org/id/london-borough-council/sutton,London Borough of Sutton,19/11/2020,1309204,249.16 , AMZNMKTPLACE,"SPLIT - 15.6 INCH LAPTOP (INTEL CELERON N3450 64-BIT, 8GB DDR3 RAM, 128GB SSD, 10000MAH BATTERY, HD WEBCAM, WINDOWS 10 PRO OS PREINSTALLED, 1920 * 1080 FHD IPS DISPLAY) NOTEBOOK (98.63%)",Peoples Services Directorate,LAC - Education,F269,
http://opendatacommunities.org/id/london-borough-council/sutton,London Borough of Sutton,19/11/2020,1309204,4.16 , AMZNMKTPLACE,BALANCING ENTRY AMOUNT (1.37%),Peoples Services Directorate,LAC - Education,F269,
http://opendatacommunities.org/id/london-borough-council/sutton,London Borough of Sutton,19/11/2020,1309204,10.40 , AMAZON.CO.UK M746G5WC4,"SPLIT - HEALTH, SAFETY AND ENVIRONMENT TEST FOR OPERATIVES AND SPECIALISTS 2019 : GT100/19 (HEALTH, SAFETY AND ENVIRONMENT TEST FOR OPERATIVES AND SPECIALISTS: GT100/19) (100%)",Peoples Services Directorate,LAC - Education,F269,
http://opendatacommunities.org/id/london-borough-council/sutton,London Borough of Sutton,15/11/2020,1309204,5.82 , AMAZON.CO.UK M755V1D04,SPLIT - HANDWRITING PRACTICE PAPER: 100 BLANK WRITING PAGES - FOR STUDENTS LEARNING TO WRITE LETTERS (58.41%),Peoples Services Directorate,LAC - Education,F269,
http://opendatacommunities.org/id/london-borough-council/sutton,London Borough of Sutton,15/11/2020,1309204,4.97 , AMAZON.CO.UK M755V1D04,SPLIT - NEW KS1 HANDWRITING DAILY PRACTICE BOOK: YEAR 2 - AUTUMN TERM (CGP KS1 ENGLISH) (41.59%),Peoples Services Directorate,LAC - Education,F269,
http://opendatacommunities.org/id/london-borough-council/sutton,London Borough of Sutton,13/11/2020,1309204,158.55 , PAYPAL  YOUTHINMIND,SDQ,Peoples Services Directorate,LAC - Education,F269,
http://opendatacommunities.org/id/london-borough-council/sutton,London Borough of Sutton,12/11/2020,1309204,6.44 , AMAZON.CO.UK M78WU4B24,SPLIT - ORCHARD TOYS SMELLY WELLIES GAME (67.3%),Peoples Services Directorate,LAC - Education,F269,
http://opendatacommunities.org/id/london-borough-council/sutton,London Borough of Sutton,12/11/2020,1309204,4.16 , AMAZON.CO.UK M78WU4B24,BALANCING ENTRY AMOUNT (32.7%),Peoples Services Directorate,LAC - Education,F269,
http://opendatacommunities.org/id/london-borough-council/sutton,London Borough of Sutton,11/11/2020,1309204,232.50 , AMZNMKTPLACE AMAZON.CO,"SPLIT - LENOVO IDEAPAD SLIM 1 14 INCH HD LAPTOP - (AMD A4, 4GB RAM, 64GB EMMC, WINDOWS 10 HOME S MODE) - ICE BLUE (100%)",Peoples Services Directorate,LAC - Education,F269,
http://opendatacommunities.org/id/london-borough-council/sutton,London Borough of Sutton,08/11/2020,1309204,25.79 , AMAZON.CO.UK M70VM3A94,SPLIT - BTEC NATIONALS TRAVEL & TOURISM STUDENT BOOK + ACTIVEBOOK: FOR THE 2017 SPECIFICATIONS (BTEC NATIONALS TRAVEL AND TOURISM/HOSPITALITY MANAGEMENT 2016) (90.72%),Peoples Services Directorate,LAC - Education,F269,
http://opendatacommunities.org/id/london-borough-council/sutton,London Borough of Sutton,08/11/2020,1309204,1.85 , AMAZON.CO.UK M70VM3A94,BALANCING ENTRY AMOUNT (9.28%),Peoples Services Directorate,LAC - Education,F269,
http://opendatacommunities.org/id/london-borough-council/sutton,London Borough of Sutton,08/11/2020,1309204,249.96 , AMZNMKTPLACE AMAZON.CO,"SPLIT - LENOVO IDEAPAD SLIM 1 14 INCH HD LAPTOP - (AMD A4, 4GB RAM, 64GB EMMC, WINDOWS 10 HOME S MODE) - ICE BLUE (100%)",Peoples Services Directorate,LAC - Education,F269,
http://opendatacommunities.org/id/london-borough-council/sutton,London Borough of Sutton,05/11/2020,1309204,18.99 , AMAZON.CO.UK M740T0Z84,SPLIT - LEVEL 1 INTRODUCTION TO HEALTH & SOCIAL CARE AND CHILDREN & YOUNG PEOPLE'S SETTINGS (100%),Peoples Services Directorate,LAC - Education,F269,
http://opendatacommunities.org/id/london-borough-council/sutton,London Borough of Sutton,01/11/2020,1309204,61.48 , RESULTSBASE.NET,ENRICHMENT PROGRAMME - EVENT ENTRY,Peoples Services Directorate,LAC - Education,F269,
http://opendatacommunities.org/id/london-borough-council/sutton,London Borough of Sutton,12/11/2020,1309204,108.00 , EB  ONLINE TRAINING RE,TRAINING COURSE FOR CANDICE,"Environment, Housing & Regeneration Directorate",Fees - Other,F299,
http://opendatacommunities.org/id/london-borough-council/sutton,London Borough of Sutton,16/11/2020,1309204,44.99 , CURRYS ONLINE,PRINTER FOR WORKING FROM HOME FOR CANDICE,"Environment, Housing & Regeneration Directorate",Purchase of IT Equipment,F380,
http://opendatacommunities.org/id/london-borough-council/sutton,London Borough of Sutton,18/11/2020,1309204,183.00 , CHARTERED MANAGEME,CMI MEMBERSHIP (GP),"Environment, Housing & Regeneration Directorate",Subscriptions - General,F450,
http://opendatacommunities.org/id/london-borough-council/sutton,London Borough of Sutton,03/11/2020,1309204,8.32 , SPOTIFY UK,MUSIC FOR WEDDINGS,Resources Directorate,Subscriptions - General,F450,
http://opendatacommunities.org/id/london-borough-council/sutton,London Borough of Sutton,01/11/2020,1309204,11.94 , TESCO STORE 3235,BATTERIES/KITCHEN ITEMS,Resources Directorate,Miscellaneous Expenses,F620,
http://opendatacommunities.org/id/london-borough-council/sutton,London Borough of Sutton,25/11/2020,1309204,91.67 , PRESS 2 DRESS,DRY CLEANING OF EMERGENCY ACCOMMODATION CURTAINS,"Environment, Housing & Regeneration Directorate",Other Services,F340,
http://opendatacommunities.org/id/london-borough-council/sutton,London Borough of Sutton,14/11/2020,1309204,256.35 , MAILCHIMP    MONTHLY,WEB HOSTING,Resources Directorate,Fees - Computer Software,F384,
http://opendatacommunities.org/id/london-borough-council/sutton,London Borough of Sutton,05/11/2020,1309204,(19.29), AMZ AMAZON.CO.UK,KEYBOARD REFUND,Resources Directorate,Personal Requisites,F106,
http://opendatacommunities.org/id/london-borough-council/sutton,London Borough of Sutton,26/10/2020,1309204,14.65 , AMZNMKTPLACE,KEYBOARD AND MOUSE MAT,Resources Directorate,Personal Requisites,F106,
http://opendatacommunities.org/id/london-borough-council/sutton,London Borough of Sutton,10/11/2020,1309204,20.82 , AMZNMKTPLACE,"SPLIT - HUANUO LAPTOP STAND WITH CUSHION ON BED & SOFA, AS BOOK STAND/SLEEPING PILLOW/LAP DESK WITH CABLE HOLE & ANTI-SLIP STRIP, FIT UP TO 15.6"" NOTEBOOK (86.12%)",Resources Directorate,Personal Requisites,F106,
http://opendatacommunities.org/id/london-borough-council/sutton,London Borough of Sutton,10/11/2020,1309204,4.16 , AMZNMKTPLACE,BALANCING ENTRY AMOUNT (13.88%),Resources Directorate,Personal Requisites,F106,
http://opendatacommunities.org/id/london-borough-council/sutton,London Borough of Sutton,10/11/2020,1309204,23.32 , AMZNMKTPLACE,"SPLIT - WANTEK WIRED CELL PHONE HEADSET MONO WITH NOISE CANCELLING MIC, 3.5MM PHONE HEADSET FOR IPHONE SAMSUNG GALAXY HUAWEI HTC LG ZTE BLACKBERRY MOBILE PHONE IPAD TABLET LAPTOP MAC PC SKYPE DRIVING(F600J35) (88.49%)",Resources Directorate,Personal Requisites,F106,
http://opendatacommunities.org/id/london-borough-council/sutton,London Borough of Sutton,10/11/2020,1309204,3.74 , AMZNMKTPLACE,BALANCING ENTRY AMOUNT (11.51%),Resources Directorate,Personal Requisites,F106,
http://opendatacommunities.org/id/london-borough-council/sutton,London Borough of Sutton,24/11/2020,1309204,"2,533.33 ", CS MORRISONS GIFT CARD,MORRISON VOUCHERS NEEDED FOR CLIENTS,Resources Directorate,Miscellaneous Expenses,F620,
http://opendatacommunities.org/id/london-borough-council/sutton,London Borough of Sutton,13/11/2020,1309204,141.42 , EVAQ8,PPE PURCHASE,Resources Directorate,Other Reimbursements,P290,
http://opendatacommunities.org/id/london-borough-council/sutton,London Borough of Sutton,29/10/2020,1309204,33.75 , WWW.PROVAC.CO.UK,PPE PURCHASE,Resources Directorate,Other Reimbursements,P290,
http://opendatacommunities.org/id/london-borough-council/sutton,London Borough of Sutton,29/10/2020,1309204,76.68 , EVAQ8,PPE PURCHASE,Resources Directorate,Other Reimbursements,P290,
http://opendatacommunities.org/id/london-borough-council/sutton,London Borough of Sutton,13/11/2020,1309204,(203.78), SPECIALISED CANVAS,FLAGS,Resources Directorate,Materials - General,F100,
http://opendatacommunities.org/id/london-borough-council/sutton,London Borough of Sutton,12/11/2020,1309204,447.30 , SPECIALISED CANVAS,FLAGS,Resources Directorate,Materials - General,F100,
http://opendatacommunities.org/id/london-borough-council/sutton,London Borough of Sutton,10/11/2020,1309204,188.04 , FACEBK 73MDQXEAL2,SPLIT - COMMUNITY AWARDS AND SUTTON'S RESPONSE CAMPAIGN - NOVEMBER 20 (94.02%),Resources Directorate,Corporate Publicity,F356,
http://opendatacommunities.org/id/london-borough-council/sutton,London Borough of Sutton,16/11/2020,1309204,7.05 , MAILCHIMP    MONTHLY,WEB HOSTING,Resources Directorate,Fees - Computer Software,F384,
http://opendatacommunities.org/id/london-borough-council/sutton,London Borough of Sutton,13/11/2020,1309204,408.99 , ARGOS LTD,CL&G,Resources Directorate,Grants,F473,
http://opendatacommunities.org/id/london-borough-council/sutton,London Borough of Sutton,13/11/2020,1309204,304.00 , CURRYS ONLINE,CL&G,Resources Directorate,Grants,F473,
http://opendatacommunities.org/id/london-borough-council/sutton,London Borough of Sutton,13/11/2020,1309204,211.95 , ARGOS LTD,CL&G,Resources Directorate,Grants,F473,
http://opendatacommunities.org/id/london-borough-council/sutton,London Borough of Sutton,12/11/2020,1309204,112.95 , ARGOS LTD,CL&G,Resources Directorate,Grants,F473,
http://opendatacommunities.org/id/london-borough-council/sutton,London Borough of Sutton,11/11/2020,1309204,199.00 , CURRYS ONLINE,CL&G,Resources Directorate,Grants,F473,
http://opendatacommunities.org/id/london-borough-council/sutton,London Borough of Sutton,11/11/2020,1309204,289.00 , CURRYS ONLINE,CL&G,Resources Directorate,Grants,F473,
http://opendatacommunities.org/id/london-borough-council/sutton,London Borough of Sutton,11/11/2020,1309204,224.99 , CURRYS ONLINE,CL&G,Resources Directorate,Grants,F473,
http://opendatacommunities.org/id/london-borough-council/sutton,London Borough of Sutton,10/11/2020,1309204,39.21 , PAYPAL  GSUITEADDON,CL&G,Resources Directorate,Grants,F473,
http://opendatacommunities.org/id/london-borough-council/sutton,London Borough of Sutton,09/11/2020,1309204,393.99 , CURRYS ONLINE,CL&G,Resources Directorate,Grants,F473,
http://opendatacommunities.org/id/london-borough-council/sutton,London Borough of Sutton,09/11/2020,1309204,455.95 , ARGOS LTD,CL&G,Resources Directorate,Grants,F473,
http://opendatacommunities.org/id/london-borough-council/sutton,London Borough of Sutton,05/11/2020,1309204,99.99 , ARGOS LTD,CL&G,Resources Directorate,Grants,F473,
http://opendatacommunities.org/id/london-borough-council/sutton,London Borough of Sutton,05/11/2020,1309204,206.95 , ARGOS LTD,CL&G,Resources Directorate,Grants,F473,
http://opendatacommunities.org/id/london-borough-council/sutton,London Borough of Sutton,03/11/2020,1309204,279.99 , CURRYS ONLINE,CL&G,Resources Directorate,Grants,F473,
http://opendatacommunities.org/id/london-borough-council/sutton,London Borough of Sutton,03/11/2020,1309204,119.99 , CURRYS ONLINE,CL&G,Resources Directorate,Grants,F473,
http://opendatacommunities.org/id/london-borough-council/sutton,London Borough of Sutton,30/10/2020,1309204,169.00 , CURRYS ONLINE,CL&G,Resources Directorate,Grants,F473,
http://opendatacommunities.org/id/london-borough-council/sutton,London Borough of Sutton,30/10/2020,1309204,149.99 , ARGOS LTD,CL&G,Resources Directorate,Grants,F473,
http://opendatacommunities.org/id/london-borough-council/sutton,London Borough of Sutton,30/10/2020,1309204,249.99 , ARGOS LTD,CL&G,Resources Directorate,Grants,F473,
http://opendatacommunities.org/id/london-borough-council/sutton,London Borough of Sutton,30/10/2020,1309204,148.95 , ARGOS LTD,CL&G,Resources Directorate,Grants,F473,
http://opendatacommunities.org/id/london-borough-council/sutton,London Borough of Sutton,30/10/2020,1309204,112.95 , ARGOS LTD,CL&G,Resources Directorate,Grants,F473,
http://opendatacommunities.org/id/london-borough-council/sutton,London Borough of Sutton,27/10/2020,1309204,149.99 , CURRYS ONLINE,CL&G,Resources Directorate,Grants,F473,
http://opendatacommunities.org/id/london-borough-council/sutton,London Borough of Sutton,27/10/2020,1309204,423.99 , CURRYS ONLINE,CL&G,Resources Directorate,Grants,F473,
http://opendatacommunities.org/id/london-borough-council/sutton,London Borough of Sutton,27/10/2020,1309204,289.00 , CURRYS ONLINE,CL&G,Resources Directorate,Grants,F473,
http://opendatacommunities.org/id/london-borough-council/sutton,London Borough of Sutton,10/11/2020,1309204,219.99 , ARGOS LTD,IT,Resources Directorate,Purchase of Software,F381,
http://opendatacommunities.org/id/london-borough-council/sutton,London Borough of Sutton,02/10/2020,1309204,13.50 , ARGOS LTD,appointeeship to be refund,Resources Directorate,Miscellaneous Expenses,F620,
http://opendatacommunities.org/id/london-borough-council/sutton,London Borough of Sutton,17/11/2020,1309204,1.65 , FORM PUBLISHER,GOOGLE FORM RENEWAL 2020/2021,Resources Directorate,Purchase of Software,F381,
http://opendatacommunities.org/id/london-borough-council/sutton,London Borough of Sutton,16/11/2020,1309204,60.01 , FORM PUBLISHER,GOOGLE FORM RENEWAL 2020/2021,Resources Directorate,Purchase of Software,F381,
http://opendatacommunities.org/id/london-borough-council/sutton,London Borough of Sutton,05/11/2020,1309204,14.00 , GEN REGISTER OFFICE,C ORRIS DEATH CERTIFICATE,Resources Directorate,Legal Services,G049,
http://opendatacommunities.org/id/london-borough-council/sutton,London Borough of Sutton,28/10/2020,1309204,158.07 , STORAGEMART UK A-81FB7,STORAGE PLACE REQUIRED FOR A CLIENT,Peoples Services Directorate,Personal Requisites,F106,
http://opendatacommunities.org/id/london-borough-council/sutton,London Borough of Sutton,17/11/2020,1309204,93.60 , EVAQ8,FOR PPE PACKS,Peoples Services Directorate,Health and Safety Equipment,F005,
http://opendatacommunities.org/id/london-borough-council/sutton,London Borough of Sutton,06/11/2020,1309204,180.00 , PAYPAL  BIGBROWNCAR,BAGS FOR PPE PACKS,Peoples Services Directorate,Health and Safety Equipment,F005,
http://opendatacommunities.org/id/london-borough-council/sutton,London Borough of Sutton,09/11/2020,1309204,40.78 , ARGOS LTD,MICROWAVE TO SUPPORT START CLIENT AT HOME (KT REF:91766),Peoples Services Directorate,Miscellaneous Expenses,F620,
http://opendatacommunities.org/id/london-borough-council/sutton,London Borough of Sutton,24/11/2020,1309204,86.67 , SAINSBURYS 2331,FOR PPE PACKS,Peoples Services Directorate,Miscellaneous Costs,G499,
http://opendatacommunities.org/id/london-borough-council/sutton,London Borough of Sutton,04/11/2020,1309204,(729.17), CITIZENM SCHIPHOL,REFUND OF PEOPLES DMT AWAY DAY VENUE - TOWER HOTEL,Peoples Services Directorate,Fees - Room Hire,F290,
http://opendatacommunities.org/id/london-borough-council/sutton,London Borough of Sutton,29/10/2020,1309204,1.62 , TRANSLATED.COM,TRANSLATION OF SOCIAL MEDIA POSTS FOR MULTI-LANGUAGE CAMPAIGN,Health and Wellbeing Directorate,Advertising/Publicity (non Staff),F240,
http://opendatacommunities.org/id/london-borough-council/sutton,London Borough of Sutton,28/10/2020,1309204,58.87 , TRANSLATED.COM,TRANSLATION OF SOCIAL MEDIA POSTS FOR MULTI-LANGUAGE CAMPAIGN,Health and Wellbeing Directorate,Advertising/Publicity (non Staff),F240,
http://opendatacommunities.org/id/london-borough-council/sutton,London Borough of Sutton,23/11/2020,1309204,39.31 , FACEBK B4YWWXWAL2,SOCIAL MEDIA CAMPAIGN FOR COVID-19 TESTING IN SUTTON,Health and Wellbeing Directorate,Advertising/Publicity (non Staff),F240,
http://opendatacommunities.org/id/london-borough-council/sutton,London Borough of Sutton,10/11/2020,1309204,10.69 , FACEBK 73MDQXEAL2,SPLIT - TEST AND TRACE ADVERTISING (5.35%),Health and Wellbeing Directorate,Advertising/Publicity (non Staff),F240,
